Cogmind - Beta 11 @@@ ROGUE MODE // 2022.04.17 @ 10:28:18 Player: 3.14 Result: Establishing Free Derelict Territories! Performance ------------- Evolutions (9) 4500 Regions Visited (34) 6800 Robots Destroyed (156) 780 Value Destroyed (4609) 4609 Prototype IDs (69) 1380 Alien Tech Used (6) 1200 Bonus (32253) 32253 TOTAL SCORE: 51522 Bonus ------- High Alert Combat Kills 110 Follower Combat Kills 1560 Network Hubs Disabled 200 Met Data Miner 300 Met Zhirov 300 Met Warlord at Base 500 MAIN.C Attacked Warlord 500 Built Enhanced Grunts 300 A7 Reached Mainframe 300 Met Warlord at Research 2000 Scanned by Researcher 500 Destroyed MAIN.C Guards 500 Met MAIN.C 5000 Hacked MAIN.C 300 Destroyed MAIN.C Shell 5000 Destroyed MAIN.C 10000 Met Warlord at Command 2000 Win 3000 Friendly Fire -117 Cogmind --------- Core Integrity 1114/1600 Matter 263/300 Energy 240/240 System Corruption 1% Temperature Cool (0) Movement Flying (26) Location Free Derelict Territories Parts ------- > --- POWER (3) -------- Zero-point Reactor > --- PROPULSION (8) --- Xenon Bombardment Thruster Cooled Cesium-ion Thruster Electron Diverter Electron Diverter Impulse Thruster Array > --- UTILITY (12) ----- Medium Storage Unit Improved Hacking Suite Advanced Hacking Suite Improved System Shield Ghost Barrier Assault Drone Bay (0/2) > --- WEAPON (3) ------- Vibroblade > --- INVENTORY (10) --- Zero-point Reactor Assault Drone Bay (0/2) Peak State ------------ > --- POWER ------------ Quantum Reactor Light Quantum Reactor Light Quantum Reactor > --- PROPULSION ------- Cooled Cesium-ion Thruster Field Propulsion Array Electron Diverter Electron Diverter Electron Diverter Impulse Thruster Array > --- UTILITY ---------- Medium Storage Unit Spectral Analyzer Improved Melee Analysis Suite Improved Melee Analysis Suite Improved Transmission Jammer Centrium Medium Armor Plating Point Defense Array Antimissile System Improved Hacking Suite Advanced Hacking Suite Improved System Shield Ghost Barrier > --- WEAPON ----------- Advanced Datajack Vibroblade > --- INVENTORY -------- Antimissile System Assault Drone Bay Assault Drone Bay Assault Drone Bay Assault Drone Bay Subatomic Replicator [Rating: 186] Favorites ----------- Power Light Nuclear Core Engine Improved Ion Engine Power Core Light Nuclear Core Reactor Light Antimatter Reactor Propulsion Improved VTOL Module Treads Light Treads Leg Improved Carbon-fiber Leg Flight Unit Improved VTOL Module Utility Advanced Hacking Suite Device Improved Transmission Jammer Storage High-capacity Storage Unit Processor Advanced Signal Interpreter Hackware Advanced Hacking Suite Protection Centrium Medium Armor Plating Weapon Enhanced Autogun Energy Gun Medium Laser Energy Cannon Compact Ion Cannon Ballistic Gun Enhanced Autogun Launcher Improved Grenade Launcher Special Weapon Remote Datajack Impact Weapon Shock Maul Slashing Weapon Vibroblade Special Melee Weapon Improved Datajack Build | -11 -10 -10 -10 -9 -8 -8 -7 -7 -7 -7 -6 -6 -6 -6 -6 -6 -5 -5 -5 -5 -4 -4 -4 -4 -4 -4 -4 -3 -3 -3 -2 -2 -1 -1 ------- Run | Scr Mat Min Exi Min Mat Sto Fac Low Low Dat Pro Fac Ext Cet Arc Hub Fac Upp Upp Zhi Pro Fac Was Fac Upp Upp War Pro Res Tes Res Qua Acc Com Slots Evolved 18 | . . . . . 4 . 2 . . . . 2 . . . . 2 . . . . 2 . . . . . . 2 . 2 . 2 . Power 2 | . . . . . . . . . . . . . . . . . . . . . . . . . . . . . . . 1 . 1 . Propulsion 6 | . . . . . 2 . . . . . . . . . . . . . . . . 2 . . . . . . 1 . . . 1 . Utility 10 | . . . . . 2 . 2 . . . . 2 . . . . 2 . . . . . . . . . . . 1 . 1 . . . Weapon . | . . . . . . . . . . . . . . . . . . . . . . . . . . . . . . . . . . . Parts Attached 259 | 6 1 3 1 . 53 23 23 . 1 2 4 7 5 1 5 5 4 5 . 6 . 3 1 15 1 2 7 . 14 18 7 9 5 22 Power 25 | 1 . 1 . . 5 1 1 . . . . . . . . . . . . 2 . 1 . 2 . . . . 2 1 1 . 1 6 Engine 8 | 1 . 1 . . 5 1 . . . . . . . . . . . . . . . . . . . . . . . . . . . . Core 3 | . . . . . . . 1 . . . . . . . . . . . . 1 . 1 . . . . . . . . . . . . Reactor 14 | . . . . . . . . . . . . . . . . . . . . 1 . . . 2 . . . . 2 1 1 . 1 6 Propulsion 74 | 2 . . . . 26 10 7 . . . . 2 . . . 1 . . . . . 1 . 3 . . 1 . 4 7 3 2 1 4 Treads 20 | 2 . . . . 9 9 . . . . . . . . . . . . . . . . . . . . . . . . . . . . Leg 17 | . . . . . 17 . . . . . . . . . . . . . . . . . . . . . . . . . . . . . Wheel . | . . . . . . . . . . . . . . . . . . . . . . . . . . . . . . . . . . . Hover . | . . . . . . . . . . . . . . . . . . . . . . . . . . . . . . . . . . . Flight 37 | . . . . . . 1 7 . . . . 2 . . . 1 . . . . . 1 . 3 . . 1 . 4 7 3 2 1 4 Utility 101 | 1 1 2 1 . 12 4 13 . 1 1 1 2 3 1 3 1 2 1 . 4 . 1 1 7 1 2 3 . 6 9 3 2 2 10 Device 38 | . . . . . 6 . 3 . 1 . 1 . . . . . 1 1 . 1 . 1 . 3 . 2 1 . 3 5 . 1 . 8 Storage 5 | 1 1 . 1 . 1 . . . . . . . . . . . . . . . . . . 1 . . . . . . . . . . Processor 8 | . . . . . . . 1 . . . . . 1 . . 1 . . . . . . . . . . . . . . 3 . 2 . Hackware 16 | . . . . . . . 5 . . . . 1 . . 3 . 1 . . 1 . . . . . . 1 . 2 2 . . . . Protection 34 | . . 2 . . 5 4 4 . . 1 . 1 2 1 . . . . . 2 . . 1 3 1 . 1 . 1 2 . 1 . 2 Artifact . | . . . . . . . . . . . . . . . . . . . . . . . . . . . . . . . . . . . Weapon 59 | 2 . . . . 10 8 2 . . 1 3 3 2 . 2 3 2 4 . . . . . 3 . . 3 . 2 1 . 5 1 2 Energy Gun 2 | 1 . . . . 1 . . . . . . . . . . . . . . . . . . . . . . . . . . . . . Energy Cannon 1 | . . . . . . . . . . . . . . . . 1 . . . . . . . . . . . . . . . . . . Ballistic Gun 15 | 1 . . . . 7 5 . . . . . . . . . 2 . . . . . . . . . . . . . . . . . . Ballistic Cannon . | . . . . . . . . . . . . . . . . . . . . . . . . . . . . . . . . . . . Launcher 9 | . . . . . 2 . . . . 1 2 . 1 . . . . 2 . . . . . 1 . . . . . . . . . . Special Weapon 8 | . . . . . . . . . . . . 1 . . . . 1 . . . . . . . . . 2 . 1 1 . 1 1 . Impact Weapon 11 | . . . . . . 2 1 . . . 1 1 1 . 1 . 1 2 . . . . . . . . . . . . . 1 . . Slashing Weapon 9 | . . . . . . 1 . . . . . . . . 1 . . . . . . . . 2 . . 1 . 1 . . 3 . . Piercing Weapon . | . . . . . . . . . . . . . . . . . . . . . . . . . . . . . . . . . . . Special Melee Weapon 4 | . . . . . . . 1 . . . . 1 . . . . . . . . . . . . . . . . . . . . . 2 Unidentified Prototypes 29 | . . . . . 3 2 1 . 1 . . . . 1 . 1 . . . 4 . . . 2 . . 3 . . 5 2 2 . 2 Corrupted Parts 1 | . . . . . . . . . . . . . . . . 1 . . . . . . . . . . . . . . . . . . System Corruption 2 | . . . . . . . . . . . . . . . . 2 . . . . . . . . . . . . . . . . . . Parts Lost 32 | . . . . . 10 . . . . . . . . . . . . 2 . . . 1 . 3 1 . . 1 . 1 . . . 13 Power 5 | . . . . . 1 . . . . . . . . . . . . . . . . . . 1 . . . . . . . . . 3 Propulsion 7 | . . . . . 4 . . . . . . . . . . . . . . . . . . . . . . . . . . . . 3 Utility 17 | . . . . . 4 . . . . . . . . . . . . 2 . . . 1 . 1 1 . . 1 . 1 . . . 6 Weapon 3 | . . . . . 1 . . . . . . . . . . . . . . . . . . 1 . . . . . . . . . 1 Highest Loss Streak 4 | . . . . . 2 . . . . . . . . . . . . 1 . . . 1 . 3 4 . . 1 . 1 . . . 4 To Critical Strikes . | . . . . . . . . . . . . . . . . . . . . . . . . . . . . . . . . . . . Average Slot Usage (%) 90 | . 90 100 100 100 92 94 92 100 92 92 92 85 92 93 93 92 90 90 83 86 94 89 90 89 75 78 85 81 83 89 78 77 80 72 Engine 3 | . 14 14 14 14 8 9 . . . . . . . . . . . . . . . . . . . . . . . . . . . . Core 2 | . . . . . . . 6 7 7 7 7 6 6 6 6 6 5 5 5 5 5 5 5 . . . . . . . . . . . Reactor 1 | . . . . . . . . . . . . . . . . . . . . . . . . 5 5 5 5 5 4 4 8 8 7 5 Treads 8 | . 28 28 28 28 15 36 2 . . . . . . . . . . . . . . . . . . . . . . . . . . . Leg 3 | . . . . . 19 . . . . . . . . . . . . . . . . . . . . . . . . . . . . . Flight 16 | . . . . . . . 27 30 28 28 28 24 25 25 25 25 22 22 22 22 22 25 25 26 30 30 30 30 29 30 25 23 24 23 Device 7 | . . . . . 10 9 7 7 7 7 7 6 6 6 6 6 11 7 . . . 2 5 9 5 8 6 5 8 8 4 4 3 8 Storage 4 | . 19 16 14 14 9 9 . . . . . . . . . . . . . . . . . . 5 5 5 5 4 4 4 4 3 3 Processor 4 | . . . . . . . 6 7 7 7 7 6 11 12 8 6 5 5 5 5 5 5 5 5 5 5 5 5 4 4 7 8 11 5 Hackware 14 | . . . . . . . 16 23 21 21 21 25 25 25 28 31 30 33 33 36 38 32 30 29 20 20 23 21 22 26 20 20 19 15 Protection 7 | . . 11 14 14 10 13 6 7 7 7 7 5 5 6 6 6 5 5 5 5 11 10 10 5 . . 3 5 3 4 4 3 3 1 Energy Gun 1 | . 14 14 14 14 . . . . . . . . . . . . . . . . . . . . . . . . . . . . . . Ballistic Gun 5 | . 14 14 14 14 17 13 1 . . . . . . . . . . . . . . . . . . . . . . . . . . . Special Weapon 1 | . . . . . . . . . . . . 3 6 6 6 6 4 5 5 5 5 5 5 4 . . 2 . . . . . 1 . Impact Weapon 2 | . . . . . . 3 6 7 7 7 6 6 5 6 4 5 5 4 5 5 5 5 5 2 . . . . . . . . . . Slashing Weapon 1 | . . . . . . 1 . . . . . . . . 1 . . . . . . . . 2 5 5 3 5 3 4 4 3 3 3 Special Melee Weapon 1 | . . . . . . . 6 7 7 7 7 2 . . . . . . . . . . . . . . . . . . . . . 1 Naked Turns . | . . . . . . . . . . . . . . . . . . . . . . . . . . . . . . . . . . . Heaviest Build 75 | 14 24 24 52 52 59 68 60 17 17 30 20 19 20 20 19 20 20 22 18 19 19 22 23 30 28 29 35 35 36 42 52 62 55 75 Greatest Support 83 | 40 40 40 40 40 80 83 83 22 22 22 22 22 21 21 21 21 21 21 21 21 21 26 26 32 32 32 35 35 40 50 54 57 60 64 Greatest Overweight (x) 2 | . . . 1 1 2 . . . . 1 . 1 . . . . . 1 . . . . . . . . . . . . . 1 . 1 Average Overweight (x) . | . . . . 1 . . . . . . . . . . . . . . . . . . . . . . . . . . . . . . Largest Inventory Capacity 20 | 8 10 10 20 20 20 20 20 5 5 5 5 5 5 5 5 5 5 5 5 5 5 5 5 10 10 10 10 10 10 10 10 10 10 10 Average Capacity 11 | 7 8 10 16 20 20 20 6 5 5 5 5 5 5 5 5 5 5 5 5 5 5 5 5 5 10 10 10 10 10 10 10 10 10 10 Most Carried 20 | 3 8 10 10 13 20 20 20 5 5 5 5 5 5 5 5 5 4 4 4 5 5 4 5 7 4 4 7 7 8 10 10 10 10 10 Average Carried 9 | 1 7 9 10 10 18 19 6 5 5 4 4 4 5 5 5 4 4 4 4 4 5 4 4 5 3 3 5 7 4 8 9 9 9 8 Final Capacity 20 | 8 10 10 20 20 20 20 5 5 5 5 5 5 5 5 5 5 5 5 5 5 5 5 5 10 10 10 10 10 10 10 10 10 10 10 Final Carried 20 | 3 8 10 10 13 20 20 5 5 5 4 5 5 5 5 5 5 4 4 4 5 5 4 4 4 4 3 7 7 7 10 10 10 10 3 Class Distribution -------------------- 29% | Hacker-Sprinter 28% | Wizard-Sprinter 20% | Scavenger-Mutant 14% | Mutant Dominant Class ---------------- Mutant | -10/Materials Mutant | -10/Mines Mutant | -10/Exiles Mutant | -9/Mines Scavenger-Mutant | -8/Materials Scavenger-Mutant | -8/Storage Hacker-Sprinter | -7/Factory Hacker-Sprinter | -7/Lower Caves Hacker-Sprinter | -7/Lower Caves Hacker-Sprinter | -7/Data Miner Hacker-Sprinter | -6/Proximity Caves Hacker-Sprinter | -6/Factory Hacker-Sprinter | -6/Extension Hacker-Sprinter | -6/Cetus Wizard-Sprinter | -6/Archives Wizard-Sprinter | -6/Hub_04(d) Wizard-Sprinter | -5/Factory Wizard-Sprinter | -5/Upper Caves Wizard-Sprinter | -5/Upper Caves Wizard-Sprinter | -5/Zhirov Wizard-Sprinter | -4/Proximity Caves Wizard-Sprinter | -4/Factory Wizard-Sprinter | -4/Waste Wizard-Sprinter | -4/Factory Hacker-Sprinter | -4/Upper Caves Hacker-Sprinter | -4/Upper Caves Wizard-Sprinter | -4/Warlord Hacker-Sprinter | -3/Proximity Caves Hacker-Sprinter | -3/Research Wizard-Sprinter | -3/Testing Wizard-Sprinter | -2/Research Wizard-Sprinter | -2/Quarantine Wizard-Sprinter | -1/Access Hacker-Sprinter | -1/Command Resources | -11 -10 -10 -10 -9 -8 -8 -7 -7 -7 -7 -6 -6 -6 -6 -6 -6 -5 -5 -5 -5 -4 -4 -4 -4 -4 -4 -4 -3 -3 -3 -2 -2 -1 -1 ----------- Run | Scr Mat Min Exi Min Mat Sto Fac Low Low Dat Pro Fac Ext Cet Arc Hub Fac Upp Upp Zhi Pro Fac Was Fac Upp Upp War Pro Res Tes Res Qua Acc Com Matter Collected 4683 | 264 25 23 . 47 1588 610 241 . 22 . 67 126 208 30 59 40 54 110 . 60 . 20 20 131 86 21 130 . 76 221 103 78 41 182 Remotely . | . . . . . . . . . . . . . . . . . . . . . . . . . . . . . . . . . . . Salvage Created 7240 | 99 75 56 . 138 2059 1389 451 . . . 69 126 294 37 108 441 32 40 . 78 . 37 . 600 . . . . 76 99 . . 41 895 Parts 312 | 4 8 4 . 11 119 64 17 . . . 6 3 8 . 9 8 . 6 . . . . . 17 . . . . 8 5 . . 2 13 Haulers Intercepted 12 | . . . . . 4 4 2 . . . . 1 . . . 1 . . . . . . . . . . . . . . . . . . Recyclers Shooed 4 | . 1 . . 1 1 1 . . . . . . . . . . . . . . . . . . . . . . . . . . . . Parts Field Recycled . | . . . . . . . . . . . . . . . . . . . . . . . . . . . . . . . . . . . Retrieved Matter . | . . . . . . . . . . . . . . . . . . . . . . . . . . . . . . . . . . . Parts Self-Destructed 62 | . . . . . . . . 3 4 . 12 . . . . . . 4 . . . . . . . . 39 . . . . . . . Prevented 7 | . . . . . . . . . . . . . . . . . . . . . . . . . . . 7 . . . . . . . Kills | -11 -10 -10 -10 -9 -8 -8 -7 -7 -7 -7 -6 -6 -6 -6 -6 -6 -5 -5 -5 -5 -4 -4 -4 -4 -4 -4 -4 -3 -3 -3 -2 -2 -1 -1 ------- Run | Scr Mat Min Exi Min Mat Sto Fac Low Low Dat Pro Fac Ext Cet Arc Hub Fac Upp Upp Zhi Pro Fac Was Fac Upp Upp War Pro Res Tes Res Qua Acc Com Combat Hostiles Destroyed 87 | . 3 1 . 3 38 21 2 . . . 7 . 1 . . . . 4 . . . . . 5 . . . . . . . . . 2 Melee 10 | . . . . . . 5 2 . . . . . 1 . . . . . . . . . . . . . . . . . . . . 2 Guns 51 | . 3 1 . 3 33 11 . . . . . . . . . . . . . . . . . . . . . . . . . . . . AOE 21 | . . . . . 5 . . . . . 7 . . . . . . 4 . . . . . 5 . . . . . . . . . . Classes Destroyed 15 | 2 1 1 . . 7 2 1 . . . . . . . . . . . . . . . . . . . . . . 1 . . . . Worker 10 | . . . . . 3 . 2 . . . . 1 . . . 4 . . . . . . . . . . . . . . . . . . Builder 3 | . . . . . 1 . . . . . . . . . . 1 . . . . . . . 1 . . . . . . . . . . Tunneler 1 | 1 . . . . . . . . . . . . . . . . . . . . . . . . . . . . . . . . . . Hauler 12 | . . . . . 4 4 2 . . . . 1 . . . 1 . . . . . . . . . . . . . . . . . . Recycler 16 | 1 1 . . 1 2 2 2 . . . . . 2 . . 1 . . . . . . . 3 . . . . . . . . . 1 Operator 12 | . . . . . 4 1 1 . . . . . 1 . 3 . . . . . . . . . . . . . 1 1 . . . . Watcher 14 | . . . . . 1 . 2 . . . . . . 1 . 2 1 . . . . 1 . 4 . . . . 1 . . . 1 . Swarmer 31 | . 3 . . 3 9 . . . . . 7 . . . . . . 4 . . . . . 5 . . . . . . . . . . Grunt 29 | . . . . . 18 10 . . . . . . 1 . . . . . . . . . . . . . . . . . . . . . Brawler 3 | . . . . . . 3 . . . . . . . . . . . . . . . . . . . . . . . . . . . . Duelist 1 | . . . . . . 1 . . . . . . . . . . . . . . . . . . . . . . . . . . . . Researcher 1 | . . . . . . . . . . . . . . . . . . . . . . . . . . . . . . 1 . . . . Sentry 17 | . . 1 . . 9 7 . . . . . . . . . . . . . . . . . . . . . . . . . . . . Hunter 3 | . . . . . 2 . . . . . . . . . . . . . . . . . . . . . . . . . . . . 1 Programmer 2 | . . . . . . . 2 . . . . . . . . . . . . . . . . . . . . . . . . . . . Best Kill Streak 7 | 2 3 1 . 4 5 7 4 . . . 4 1 1 1 3 6 1 4 . . . 1 . 5 . . . . 1 1 . . 1 1 Combat Bots Only 7 | . 3 1 . 3 5 7 1 . . . 4 . 1 . . . . 4 . . . . . 5 . . . . . . . . . 1 Max Kills in Single Turn 6 | 2 1 1 . 1 3 1 1 . . . 2 1 1 1 1 6 1 2 . . . 1 . 2 . . . . 1 1 . . 1 1 Gunslinging . | . . . . . . . . . . . . . . . . . . . . . . . . . . . . . . . . . . . Exploded 3 | . . . . . 3 . . . . . 2 . . . . . . 2 . . . . . 2 . . . . . . . . . . Melee 1 | . . . . . . 1 1 . . . . . 1 . . . . . . . . . . . . . . . . . . . . 1 Uniques/NPCs Destroyed 1 | . . . . . . . . . . . . . . . . . . . . . . . . . . . . . . . . . . 1 MAIN.C Shell (-1/Command) Combat | -11 -10 -10 -10 -9 -8 -8 -7 -7 -7 -7 -6 -6 -6 -6 -6 -6 -5 -5 -5 -5 -4 -4 -4 -4 -4 -4 -4 -3 -3 -3 -2 -2 -1 -1 -------- Run | Scr Mat Min Exi Min Mat Sto Fac Low Low Dat Pro Fac Ext Cet Arc Hub Fac Upp Upp Zhi Pro Fac Was Fac Upp Upp War Pro Res Tes Res Qua Acc Com Damage Taken 8344 | . 48 . . 116 2131 786 69 . . . 16 185 123 23 . 147 36 152 23 . . 76 . 455 39 . . 54 57 143 209 233 424 2799 Core 1106 | . 7 . . 12 243 96 25 . . . . . 17 23 . 20 . . . . . 23 . 93 . . . . . . 21 40 43 443 Absorbed by Shields 75 | . . . . . . . . . . . . . 11 . . . . . . . . . . 64 . . . . . . . . . . Redirected to Shielding 233 | . . . . 13 76 36 . . . . . . . . . . . . . . . . . 108 . . . . . . . . . . Regen/Repaired (Parts) 1279 | . . . . . . . 83 . . . . 185 . . . . 50 . . . . . . 112 . . . . 437 170 . 242 . . Core Remaining (%) 86 | 100 . . . 92 . 38 . . . . 96 . . . . 92 . . . . 100 . . . . . . 81 . 100 . 95 . 69 Volleys Fired 265 | 3 8 1 . 9 158 44 . . . . 7 . 13 . . 1 . 5 . . . . . 4 . . 10 . 2 . . . . . Largest 2 | 2 2 2 . 2 2 2 . . . . 1 . 1 . . 1 . 1 . . . . . 1 . . 1 . 1 . . . . . Hottest 76 | 70 70 70 . 70 76 50 . . . . 36 . 36 . . 28 . 36 . . . . . 36 . . 5 . 5 . . . . . Shots Fired 485 | 6 16 2 . 18 313 88 . . . . 7 . 13 . . 1 . 5 . . . . . 4 . . 10 . 2 . . . . . Gun 441 | 6 16 2 . 18 310 88 . . . . . . . . . 1 . . . . . . . . . . . . . . . . . . Cannon . | . . . . . . . . . . . . . . . . . . . . . . . . . . . . . . . . . . . Launcher 26 | . . . . . 3 . . . . . 7 . 7 . . . . 5 . . . . . 4 . . . . . . . . . . Special 18 | . . . . . . . . . . . . . 6 . . . . . . . . . . . . . 10 . 2 . . . . . Kinetic 418 | 3 8 1 . 9 308 88 . . . . . . . . . 1 . . . . . . . . . . . . . . . . . . Thermal 23 | 3 8 1 . 9 2 . . . . . . . . . . . . . . . . . . . . . . . . . . . . . Explosive 26 | . . . . . 3 . . . . . 7 . 7 . . . . 5 . . . . . 4 . . . . . . . . . . Electromagnetic . | . . . . . . . . . . . . . . . . . . . . . . . . . . . . . . . . . . . Robot Hit Streak 17 | 5 9 11 . 13 17 14 . . . . 4 . 5 . . . . . . . . . . 6 . . 7 . 1 . . . . . Robot Miss Streak 4 | . 2 . . 4 3 4 . . . . . . 1 . . . . . . . . . . . . . 1 . 1 . . . . . Penetration Max . | . . . . . . . . . . . . . . . . . . . . . . . . . . . . . . . . . . . Secondary Targets 6 | . . . . 2 4 . . . . . . . . . . . . . . . . . . . . . . . . . . . . . Max Gunslinging Chain 1 | . . . . 1 1 . . . . . . . . . . . . . . . . . . . . . . . . . . . . . Shots Hit Robots 423 | 5 12 2 . 10 210 77 16 . . . 1 4 9 1 3 5 1 . . 2 . 1 . 10 . . 8 . 3 4 5 1 4 29 Core Hits 205 | 4 3 2 . 6 92 32 5 . . . 11 1 2 . 2 6 . 4 . . . . . 21 . . . . 1 1 . . 1 11 Critical Kills 4 | . . . . . . 1 2 . . . . . 1 . . . . . . . . . . . . . . . . . . . . . Critical Parts Destroyed 15 | . . . . . . 6 3 . . . . . 1 . . 3 1 . . . . . . 1 . . . . . . . . . . Critical Strikes 23 | . . . . . . 7 5 . . . . . 2 . . 3 1 . . . . . . 1 . . . . . . 1 . . 3 Smash 19 | . . . . . . 7 5 . . . . . 2 . . 3 1 . . . . . . 1 . . . . . . . . . . Sever 4 | . . . . . . . . . . . . . . . . . . . . . . . . . . . . . . . 1 . . 3 Melee Attacks 291 | . . . . . . 31 57 . 3 . 2 15 6 1 3 8 11 1 . 2 1 9 . 23 . . 2 . 13 17 12 9 23 42 Impact 143 | . . . . . . 21 56 . 3 . 2 13 6 1 . 8 11 1 . 2 1 9 . 9 . . . . . . . . . . Slashing 143 | . . . . . . 10 . . . . . . . . 3 . . . . . . . . 14 . . 2 . 13 17 12 9 23 40 Piercing . | . . . . . . . . . . . . . . . . . . . . . . . . . . . . . . . . . . . Sneak Attacks 36 | . . . . . . 3 9 . . . . 4 3 . 3 1 . . . . . . . 5 . . . . 1 1 1 1 1 3 Combat Hostiles 3 | . . . . . . . . . . . . 1 . . . . . . . . . . . . . . . . . . . . . 2 Follow-up Attacks . | . . . . . . . . . . . . . . . . . . . . . . . . . . . . . . . . . . . Damage Inflicted 15391 | 83 170 45 . 165 3848 2079 1288 . . . 464 387 418 65 294 1073 88 352 . 201 . 69 . 1395 . . . . 205 325 346 86 303 1642 Guns 4687 | 77 159 25 . 165 3290 971 . . . . . . . . . . . . . . . . . . . . . . . . . . . . Cannons . | . . . . . . . . . . . . . . . . . . . . . . . . . . . . . . . . . . . Explosions 2463 | . . . . . 502 . . . . . 464 . . . . 645 . 352 . . . . . 500 . . . . . . . . . . Melee 8115 | . . . . . . 1075 1288 . . . . 387 418 65 294 428 88 . . 201 . 69 . 895 . . . . 205 325 346 86 303 1642 Ramming 126 | 6 11 20 . . 56 33 . . . . . . . . . . . . . . . . . . . . . . . . . . . . Kinetic 4466 | 39 95 12 . 89 3260 971 . . . . . . . . . . . . . . . . . . . . . . . . . . . . Thermal 221 | 38 64 13 . 76 30 . . . . . . . . . . . . . . . . . . . . . . . . . . . . . Explosive 1714 | . . . . . 502 . . . . . 464 . . . . . . 352 . . . . . 396 . . . . . . . . . . Electromagnetic 749 | . . . . . . . . . . . . . . . . 645 . . . . . . . 104 . . . . . . . . . . Impact 3960 | . . . . . . 709 1288 . . . . 387 418 65 . 428 88 . . 201 . 69 . 307 . . . . . . . . . . Slashing 4155 | . . . . . . 366 . . . . . . . . 294 . . . . . . . . 588 . . . . 205 325 346 86 303 1642 Piercing . | . . . . . . . . . . . . . . . . . . . . . . . . . . . . . . . . . . . Highest Corruption 6 | . . . . . . 6 1 1 1 1 1 3 3 3 3 6 . . . . . . . 3 3 3 3 . . . 4 4 1 1 Average Corruption 2 | . . . . . . 4 1 1 1 1 1 3 3 3 3 3 . . . . . . . 1 3 3 3 . . . 4 4 1 1 Corruption Purged . | . . . . . . . . . . . . . . . . . . . . . . . . . . . . . . . . . . . Corruption Blocked 1 | . . . . . . . . . . . . . . . . . . . . . . . . . . . . . . . 1 . . . Effects 85 | . . . . . . 25 9 3 2 . 1 7 6 5 1 3 . . . . . . . 5 2 1 . . . . 1 9 . 5 Message Errors 21 | . . . . . . 4 2 . 1 . . 2 1 1 . . . . . . . . . 2 1 1 . . . . 1 3 . 2 Matter Fused 17 | . . . . . . 4 1 . 1 . . 2 1 . 1 . . . . . . . . 2 1 . . . . . . 2 . 2 Heat Flow Errors 17 | . . . . . . 6 2 1 . . . 1 . 2 . 1 . . . . . . . 1 . . . . . . . 2 . 1 Energy Discharges 11 | . . . . . . 6 . . . . . . 3 . . 2 . . . . . . . . . . . . . . . . . . Data Loss (minor) 12 | . . . . . . 2 2 1 . . 1 2 . 2 . . . . . . . . . . . . . . . . . 2 . . Data Loss (major) 5 | . . . . . . 2 1 1 . . . . 1 . . . . . . . . . . . . . . . . . . . . . Alerts 2 | . . . . . . 1 1 . . . . . . . . . . . . . . . . . . . . . . . . . . . Overload Shots . | . . . . . . . . . . . . . . . . . . . . . . . . . . . . . . . . . . . Overflow Damage 2710 | . . . . . . 531 633 . . . 5 74 116 30 58 224 88 63 . 172 . 45 . 273 . . . . 40 147 . 56 87 68 Projectiles 26 | . . . . . . 26 . . . . . . . . . . . . . . . . . . . . . . . . . . . . Explosions 122 | . . . . . . . . . . . 5 . . . . 19 . 63 . . . . . 35 . . . . . . . . . . Melee 2562 | . . . . . . 505 633 . . . . 74 116 30 58 205 88 . . 172 . 45 . 238 . . . . 40 147 . 56 87 68 Knockbacks 10 | . . . . . . 2 1 . . . . 1 1 1 . 2 1 . . . . . . 1 . . . . . . . . . . Impact 10 | . . . . . . 2 1 . . . . 1 1 1 . 2 1 . . . . . . 1 . . . . . . . . . . Kinetic . | . . . . . . . . . . . . . . . . . . . . . . . . . . . . . . . . . . . Secondary . | . . . . . . . . . . . . . . . . . . . . . . . . . . . . . . . . . . . Self-Inflicted Damage 122 | . . . . . 31 . . . . . . . . . . 91 . . . . . . . . . . . . . . . . . . Shots 3 | . . . . . 2 . . . . . . . . . . 1 . . . . . . . . . . . . . . . . . . Rammed 14 | 3 2 2 . . 4 3 . . . . . . . . . . . . . . . . . . . . . . . . . . . . Targets Rammed 21 | 3 3 2 . . 10 3 . . . . . . . . . . . . . . . . . . . . . . . . . . . . Kicked 4 | . . . . . 4 . . . . . . . . . . . . . . . . . . . . . . . . . . . . . Crushed 3 | . 1 . . . 2 . . . . . . . . . . . . . . . . . . . . . . . . . . . . . Highest Temperature 280 | 27 63 9 . 72 16 249 198 147 . . 11 221 . 280 . 138 . . . . . . . 90 . . . . 5 15 14 196 9 171 Average Temperature 61 | 14 29 6 . 29 8 84 87 80 . . 6 105 . 147 . 61 . . . . . . . 66 . . . . 3 8 7 110 2 26 Received Heat Transfer 1704 | . . . . . 1062 342 12 . . . . 9 30 . . 27 18 . . . . . . 54 . . . . 9 33 27 36 36 9 Siege Activations . | . . . . . . . . . . . . . . . . . . . . . . . . . . . . . . . . . . . Robots Corrupted . | . . . . . . . . . . . . . . . . . . . . . . . . . . . . . . . . . . . Combat Hostiles . | . . . . . . . . . . . . . . . . . . . . . . . . . . . . . . . . . . . Parts Fried 36 | . . . . . . 7 8 . . . . . 3 1 . 7 1 . . . . 2 . 7 . . . . . . . . . . Impact Corruptions 56 | . . . . . . 12 13 . . . . 3 3 2 . 7 3 . . 7 . 1 . 5 . . . . . . . . . . Robots Melted . | . . . . . . . . . . . . . . . . . . . . . . . . . . . . . . . . . . . Combat Hostiles . | . . . . . . . . . . . . . . . . . . . . . . . . . . . . . . . . . . . Parts Melted 1 | . 1 . . . . . . . . . . . . . . . . . . . . . . . . . . . . . . . . . Heat Transferred 629 | 111 185 37 . 222 74 . . . . . . . . . . . . . . . . . . . . . . . . . . . . . Parts Sabotaged . | . . . . . . . . . . . . . . . . . . . . . . . . . . . . . . . . . . . Parts Stolen . | . . . . . . . . . . . . . . . . . . . . . . . . . . . . . . . . . . . Parts Stripped . | . . . . . . . . . . . . . . . . . . . . . . . . . . . . . . . . . . . Power Chain Reactions 1 | . . . . . . . . . . . . . . . . . . . . . . . . 1 . . . . . . . . . . Missiles Intercepted 15 | . . . . . . . . . . . . . . . . . . . . . . . . . . . . . . . . . . 15 Alert | -11 -10 -10 -10 -9 -8 -8 -7 -7 -7 -7 -6 -6 -6 -6 -6 -6 -5 -5 -5 -5 -4 -4 -4 -4 -4 -4 -4 -3 -3 -3 -2 -2 -1 -1 ------- Run | Scr Mat Min Exi Min Mat Sto Fac Low Low Dat Pro Fac Ext Cet Arc Hub Fac Upp Upp Zhi Pro Fac Was Fac Upp Upp War Pro Res Tes Res Qua Acc Com Peak Influence 646 | 10 81 51 . 75 329 646 377 . . . . 145 184 188 290 620 515 . . . . 39 13 284 . . . . 213 412 352 414 614 563 Initial 392 | . 6 31 . . 29 138 242 . . . . 27 4 60 75 101 303 . . . . . 13 9 . . . . . 119 155 198 248 392 Average 197 | 2 54 44 . 43 172 377 244 . . . . 84 71 167 249 188 402 . . . . 29 13 36 . . . . 41 204 265 243 362 443 Maximum Alert Level 2 | . . . . . 1 2 1 . . . . . . . 1 2 2 . . . . . . 1 . . . . 1 2 1 2 2 2 Low Security (%) 53 | 100 100 100 . 100 58 20 14 . . . . 100 100 100 23 50 . . . . . 100 100 96 . . . . 97 58 17 7 . . Level 1 35 | . . . . . 41 25 85 . . . . . . . 76 47 52 . . . . . . 3 . . . . 2 39 82 91 63 40 Level 2 11 | . . . . . . 53 . . . . . . . . . 2 47 . . . . . . . . . . . . 2 . 1 36 59 Level 3 . | . . . . . . . . . . . . . . . . . . . . . . . . . . . . . . . . . . . Level 4 . | . . . . . . . . . . . . . . . . . . . . . . . . . . . . . . . . . . . Level 5 . | . . . . . . . . . . . . . . . . . . . . . . . . . . . . . . . . . . . High Security . | . . . . . . . . . . . . . . . . . . . . . . . . . . . . . . . . . . . Max Security . | . . . . . . . . . . . . . . . . . . . . . . . . . . . . . . . . . . . Squads Dispatched 51 | . 1 . . . 6 5 6 . . . . 2 1 . . 4 . . . . . . . 5 . . . . 4 4 . 5 2 6 Investigation 19 | . 1 . . . 2 2 3 . . . . 1 . . . 1 . . . . . . . 3 . . . . 1 2 . . 2 1 Extermination 8 | . . . . . . . 2 . . . . . . . . . . . . . . . . 2 . . . . 1 1 . 1 . 1 Reinforcement 21 | . . . . . 3 1 1 . . . . 1 1 . . 3 . . . . . . . . . . . . 2 1 . 4 . 4 Assault 2 | . . . . . . 2 . . . . . . . . . . . . . . . . . . . . . . . . . . . . Garrison 1 | . . . . . 1 . . . . . . . . . . . . . . . . . . . . . . . . . . . . . Intercept . | . . . . . . . . . . . . . . . . . . . . . . . . . . . . . . . . . . . Searches Triggered 2 | . . . . . . . . . . . . . . . . . . . . . . . . . . . . . . . . . 1 1 Data Miner Redirects 3 | . . . . . . . . . . . . 1 . . . . . . . . . . . . . . . . . 1 . . 1 . Construction Impeded 1 | . . . . . 1 . . . . . . . . . . . . . . . . . . . . . . . . . . . . . Haulers Reinforced 2 | . . . . . . . . . . . . . . . . 1 . . . . . . . . . . . . 1 . . . . . Active Scanning Responses . | . . . . . . . . . . . . . . . . . . . . . . . . . . . . . . . . . . . Cargo Convoy Interrupts . | . . . . . . . . . . . . . . . . . . . . . . . . . . . . . . . . . . . Stealth | -11 -10 -10 -10 -9 -8 -8 -7 -7 -7 -7 -6 -6 -6 -6 -6 -6 -5 -5 -5 -5 -4 -4 -4 -4 -4 -4 -4 -3 -3 -3 -2 -2 -1 -1 --------- Run | Scr Mat Min Exi Min Mat Sto Fac Low Low Dat Pro Fac Ext Cet Arc Hub Fac Upp Upp Zhi Pro Fac Was Fac Upp Upp War Pro Res Tes Res Qua Acc Com Distress Signals 24 | . . . . . 7 1 . . . . . . 2 1 . 2 2 . . . . . . 1 . . . . 1 3 2 1 1 . Communications Jammed 37 | . . . . . . . . . . . . . . . . . . . . . . . . 17 . . . . . 2 . 3 15 . Distress Signals 37 | . . . . . . . . . . . . . . . . . . . . . . . . 17 . . . . . 2 . 3 15 . Times Spotted 375 | . 3 1 . 4 56 35 13 3 . . 3 8 5 5 2 14 14 13 7 . 1 7 . 21 7 . 22 2 19 28 14 17 22 29 Peak Tracking Total 15 | . 3 1 . 4 5 8 5 3 . . 2 7 2 5 1 6 6 6 7 . 1 5 . 12 7 . 7 2 9 9 7 15 10 7 Tactical Retreats 38 | . . . . . 1 1 4 . . . . 3 . . . 1 5 4 2 . . . . 1 3 . 1 . 1 4 2 . 3 2 Traps | -11 -10 -10 -10 -9 -8 -8 -7 -7 -7 -7 -6 -6 -6 -6 -6 -6 -5 -5 -5 -5 -4 -4 -4 -4 -4 -4 -4 -3 -3 -3 -2 -2 -1 -1 ------- Run | Scr Mat Min Exi Min Mat Sto Fac Low Low Dat Pro Fac Ext Cet Arc Hub Fac Upp Upp Zhi Pro Fac Was Fac Upp Upp War Pro Res Tes Res Qua Acc Com Traps Triggered 22 | . 1 . . . 2 4 1 . . . . 3 2 . . 2 . . . . . 1 . 2 . . . . 1 1 . . 2 . Indirectly 1 | . . . . . . . . . . . . . . . . 1 . . . . . . . . . . . . . . . . . . Trap Hack Attempts . | . . . . . . . . . . . . . . . . . . . . . . . . . . . . . . . . . . . Triggered . | . . . . . . . . . . . . . . . . . . . . . . . . . . . . . . . . . . . Disarmed . | . . . . . . . . . . . . . . . . . . . . . . . . . . . . . . . . . . . Reprogrammed 6 | . . . . . . . . . . . . . . . . . . . . . . . . 6 . . . . . . . . . . Reused . | . . . . . . . . . . . . . . . . . . . . . . . . . . . . . . . . . . . Traps Extracted . | . . . . . . . . . . . . . . . . . . . . . . . . . . . . . . . . . . . Installed . | . . . . . . . . . . . . . . . . . . . . . . . . . . . . . . . . . . . Triggered 10 | . . . . . . . . . 2 . . . . . . . . . 1 . . . . . . . 7 . . . . . . . Machines | -11 -10 -10 -10 -9 -8 -8 -7 -7 -7 -7 -6 -6 -6 -6 -6 -6 -5 -5 -5 -5 -4 -4 -4 -4 -4 -4 -4 -3 -3 -3 -2 -2 -1 -1 ---------- Run | Scr Mat Min Exi Min Mat Sto Fac Low Low Dat Pro Fac Ext Cet Arc Hub Fac Upp Upp Zhi Pro Fac Was Fac Upp Upp War Pro Res Tes Res Qua Acc Com Machines Disabled 40 | . . . . . 1 6 2 . . . . 5 . . 2 11 . . . . . . . 3 . . . . 1 3 . 5 1 . Max in Single Turn 10 | . . . . . 1 1 1 . . . . . . . . 10 . . . . . . . 2 . . . . . 1 . 1 1 . Garrison Access 4 | . . . . . 1 . 1 . . . . . . . . . . . . . . . . . . . . . . . 1 . 1 . Network Hub 1 | . . . . . . . . . . . . . . . . 1 . . . . . . . . . . . . . . . . . . Machines Sabotaged . | . . . . . . . . . . . . . . . . . . . . . . . . . . . . . . . . . . . Garrisons Compromised . | . . . . . . . . . . . . . . . . . . . . . . . . . . . . . . . . . . . Overloaded Fab Kills . | . . . . . . . . . . . . . . . . . . . . . . . . . . . . . . . . . . . Hacking | -11 -10 -10 -10 -9 -8 -8 -7 -7 -7 -7 -6 -6 -6 -6 -6 -6 -5 -5 -5 -5 -4 -4 -4 -4 -4 -4 -4 -3 -3 -3 -2 -2 -1 -1 --------- Run | Scr Mat Min Exi Min Mat Sto Fac Low Low Dat Pro Fac Ext Cet Arc Hub Fac Upp Upp Zhi Pro Fac Was Fac Upp Upp War Pro Res Tes Res Qua Acc Com Machines Accessed 100 | . . . 1 . 8 10 12 . . 3 . 8 3 1 . 1 4 . . 4 1 . . 8 . . 5 . 1 11 4 4 7 4 Terminals 59 | . . . . . 5 9 6 . . . . 4 3 1 . 1 3 . . . 1 . . 4 . . . . . 8 3 3 4 4 Fabricators 9 | . . . . . . . 2 . . . . . . . . . . . . . . . . 3 . . . . . 2 . . 2 . Repair Stations 13 | . . . . . 1 1 2 . . . . 4 . . . . 1 . . . . . . 1 . . . . 1 1 . 1 . . Recycling Units . | . . . . . . . . . . . . . . . . . . . . . . . . . . . . . . . . . . . Scanalyzers 2 | . . . . . 1 . 1 . . . . . . . . . . . . . . . . . . . . . . . . . . . Garrison Access 4 | . . . . . 1 . 1 . . . . . . . . . . . . . . . . . . . . . . . 1 . 1 . Total Hacks 324 | . . . 1 . 14 21 30 . . 24 . 23 17 1 . 4 11 . . 17 1 . . 28 . . 8 . 18 37 10 21 24 14 Successful 234 | . . . 1 . 8 8 19 . . 24 . 17 9 1 . 2 8 . . 17 1 . . 26 . . 8 . 12 23 8 16 17 9 Failed 88 | . . . . . 6 13 11 . . . . 5 7 . . 2 3 . . . . . . 2 . . . . 6 14 2 5 7 5 Catastrophic 8 | . . . . . 2 3 1 . . . . 1 . . . . . . . . . . . . . . . . . . . . . 1 Database Lockouts 2 | . . . . . . . . . . . . 1 1 . . . . . . . . . . . . . . . . . . . . . Manual 123 | . . . . . 5 11 9 . . . . 10 11 1 . . 8 . . . . . . 12 . . 1 . . 21 8 6 12 8 Terminals 171 | . . . . . 10 19 11 . . . . 12 17 1 . 4 9 . . . 1 . . 13 . . . . . 27 9 8 16 14 Fabricators 30 | . . . . . . . 8 . . . . . . . . . . . . . . . . 9 . . . . . 6 . . 7 . Repair Stations 64 | . . . . . 1 2 7 . . . . 11 . . . . 2 . . . . . . 6 . . . . 18 4 . 13 . . Recycling Units . | . . . . . . . . . . . . . . . . . . . . . . . . . . . . . . . . . . . Scanalyzers 5 | . . . . . 2 . 3 . . . . . . . . . . . . . . . . . . . . . . . . . . . Garrison Access 4 | . . . . . 1 . 1 . . . . . . . . . . . . . . . . . . . . . . . 1 . 1 . Terminal Hacks 125 | . . . 1 . 3 5 4 . . 24 . 5 9 1 . 2 3 . . 17 1 . . 11 . . 8 . . 9 4 4 7 7 Record 16 | . . . 1 . . . . . . 6 . . . . . . . . . 5 1 . . . . . 3 . . . . . . . Part Schematic 24 | . . . . . . 1 2 . . 11 . 1 1 . . . . . . 4 . . . 2 . . . . . 1 . . 1 . Robot Schematic 5 | . . . . . . . . . . 4 . . . . . . . . . . . . . 1 . . . . . . . . . . Robot Analysis 8 | . . . . . . . . . . . . . 3 . . . . . . 4 . . . . . . . . . . . . 1 . Prototype ID Bank 15 | . . . . . . 1 . . . 3 . . 1 . . . . . . 4 . . . 1 . . 4 . . . . . 1 . Open Door 8 | . . . . . . 3 . . . . . 1 . 1 . . . . . . . . . . . . 1 . . 1 . . . 1 Level Access Points 1 | . . . . . . . . . . . . . . . . . . . . . . . . . . . . . . 1 . . . . Branch Access Points 4 | . . . . . 1 . 1 . . . . . . . . . 1 . . . . . . . . . . . . . 1 . . . Machine Index 4 | . . . . . . . . . . . . . . . . . 1 . . . . . . . . . . . . 1 . 1 1 . Terminal Index 5 | . . . . . . . . . . . . . . . . . 1 . . . . . . 1 . . . . . . . 1 1 1 Fabricator Index 5 | . . . . . . . 1 . . . . 1 . . . . . . . . . . . 1 . . . . . . 1 . . 1 Repair Station Index 1 | . . . . . . . . . . . . . . . . . . . . . . . . . . . . . . . . . . 1 Recycling Unit Index 1 | . . . . . . . . . . . . . . . . . . . . . . . . . . . . . . . . . . 1 Garrison Index 1 | . . . . . . . . . . . . . . . . . . . . . . . . . . . . . . . 1 . . . Unreport Threat 8 | . . . . . 2 . . . . . . 1 3 . . 2 . . . . . . . . . . . . . . . . . . Locate Traps 3 | . . . . . . . . . . . . 1 1 . . . . . . . . . . . . . . . . 1 . . . . Reprogram Traps 1 | . . . . . . . . . . . . . . . . . . . . . . . . 1 . . . . . . . . . . Recall Investigation 4 | . . . . . . . . . . . . . . . . . . . . . . . . 3 . . . . . 1 . . . . Recall Extermination 3 | . . . . . . . . . . . . . . . . . . . . . . . . 1 . . . . . 1 . 1 . . Recall Reinforcements 1 | . . . . . . . . . . . . . . . . . . . . . . . . . . . . . . 1 . . . . Zone Layout 6 | . . . . . . . . . . . . . . . . . . . . . . . . . . . . . . 1 1 1 2 1 Disengage Seal 1 | . . . . . . . . . . . . . . . . . . . . . . . . . . . . . . . . . . 1 Fabricator Hacks 20 | . . . . . . . 5 . . . . . . . . . . . . . . . . 6 . . . . . 5 . . 4 . Network Status 1 | . . . . . . . . . . . . . . . . . . . . . . . . . . . . . . 1 . . . . Load Schematic 10 | . . . . . . . 3 . . . . . . . . . . . . . . . . 3 . . . . . 2 . . 2 . Build 9 | . . . . . . . 2 . . . . . . . . . . . . . . . . 3 . . . . . 2 . . 2 . Repair Station Hacks 48 | . . . . . . 1 5 . . . . 9 . . . . 2 . . . . . . 6 . . . . 12 4 . 9 . . Scan Component 26 | . . . . . . 1 3 . . . . 5 . . . . 1 . . . . . . 3 . . . . 6 2 . 5 . . Repair 22 | . . . . . . . 2 . . . . 4 . . . . 1 . . . . . . 3 . . . . 6 2 . 4 . . Recycling Unit Hacks . | . . . . . . . . . . . . . . . . . . . . . . . . . . . . . . . . . . . Scanalyzer 3 | . . . . . 2 . 1 . . . . . . . . . . . . . . . . . . . . . . . . . . . Insert Component 2 | . . . . . 1 . 1 . . . . . . . . . . . . . . . . . . . . . . . . . . . Analyze 1 | . . . . . 1 . . . . . . . . . . . . . . . . . . . . . . . . . . . . . Garrison Access Hacks 4 | . . . . . 1 . 1 . . . . . . . . . . . . . . . . . . . . . . . 1 . 1 . Seal Access 4 | . . . . . 1 . 1 . . . . . . . . . . . . . . . . . . . . . . . 1 . 1 . Unauthorized Hacks 34 | . . . . . 2 2 3 . . . . 3 . . . . 3 . . . . . . 3 . . . . . 5 3 3 5 2 Terminals 26 | . . . . . 2 2 1 . . . . 3 . . . . 3 . . . . . . . . . . . . 4 3 3 3 2 Track 3 | . . . . . . . . . . . . . . . . . . . . . . . . . . . . . . . . 2 . 1 Assimilate 7 | . . . . . . . . . . . . 1 . . . . 1 . . . . . . . . . . . . 2 2 . 1 . Botnet 12 | . . . . . . 1 1 . . . . 1 . . . . 2 . . . . . . . . . . . . 2 1 1 2 1 Disrupt 1 | . . . . . 1 . . . . . . . . . . . . . . . . . . . . . . . . . . . . . Operators 3 | . . . . . 1 1 . . . . . 1 . . . . . . . . . . . . . . . . . . . . . . Fabricators 8 | . . . . . . . 2 . . . . . . . . . . . . . . . . 3 . . . . . 1 . . 2 . Prioritize 7 | . . . . . . . 1 . . . . . . . . . . . . . . . . 3 . . . . . 1 . . 2 . Recompile 1 | . . . . . . . 1 . . . . . . . . . . . . . . . . . . . . . . . . . . . Repair Stations . | . . . . . . . . . . . . . . . . . . . . . . . . . . . . . . . . . . . Recycling Units . | . . . . . . . . . . . . . . . . . . . . . . . . . . . . . . . . . . . Scanalyzers . | . . . . . . . . . . . . . . . . . . . . . . . . . . . . . . . . . . . Garrison Access . | . . . . . . . . . . . . . . . . . . . . . . . . . . . . . . . . . . . Data Cores Recovered 2 | . . . . . 2 . . . . . . . . . . . . . . . . . . . . . . . . . . . . . Used 1 | . . . . . 1 . . . . . . . . . . . . . . . . . . . . . . . . . . . . . Hacking Detections 50 | . . . . . 6 8 10 . . . . 5 2 . . 1 2 . . . . . . 5 . . . . . 3 1 2 4 1 Full Trace Events 11 | . . . . . . 2 2 . . . . . . . . . . . . . . . . 3 . . . . . 2 . . 2 . Feedback Events 2 | . . . . . . . 1 . . . . . . . . . . . . . . . . . . . . . . 1 . . . . Corruption 1 | . . . . . . . 1 . . . . . . . . . . . . . . . . . . . . . . . . . . . Hackware Fried 1 | . . . . . . . . . . . . . . . . . . . . . . . . . . . . . . 1 . . . . Feedback Blocked . | . . . . . . . . . . . . . . . . . . . . . . . . . . . . . . . . . . . Robot Schematics Acquired 7 | . . . . . . . . . . 4 . . . . . . . . . . . . . 1 . . . . . 2 . . . . Robots Built . | . . . . . . . . . . . . . . . . . . . . . . . . . . . . . . . . . . . Authchips . | . . . . . . . . . . . . . . . . . . . . . . . . . . . . . . . . . . . Time . | . . . . . . . . . . . . . . . . . . . . . . . . . . . . . . . . . . . Total Robot Build Rating . | . . . . . . . . . . . . . . . . . . . . . . . . . . . . . . . . . . . Part Schematics Acquired 28 | . . . . . 1 1 2 . . 11 . . 1 . . . . . . 4 . . . 2 . . . . . 4 . 1 1 . Parts Built 9 | . . . . . . . 2 . . . . . . . . . . . . . . . . 3 . . . . . 2 . . 2 . Authchips 1 | . . . . . . . 1 . . . . . . . . . . . . . . . . . . . . . . . . . . . Time 461 | . . . . . . . 79 . . . . . . . . . . . . . . . . 227 . . . . . 93 . . 62 . Total Part Build Rating 59 | . . . . . . . 12 . . . . . . . . . . . . . . . . 19 . . . . . 14 . . 14 . Parts Repaired 22 | . . . . . . . 2 . . . . 4 . . . . 1 . . . . . . 3 . . . . 6 2 . 4 . . Time 929 | . . . . . . . 146 . . . . 196 . . . . 22 . . . . . . 52 . . . . 213 89 . 211 . . Parts Recycled . | . . . . . . . . . . . . . . . . . . . . . . . . . . . . . . . . . . . Recycled Matter . | . . . . . . . . . . . . . . . . . . . . . . . . . . . . . . . . . . . Retrieved Matter . | . . . . . . . . . . . . . . . . . . . . . . . . . . . . . . . . . . . Retrieved Components . | . . . . . . . . . . . . . . . . . . . . . . . . . . . . . . . . . . . Parts Scanalyzed 2 | . . . . . 1 . 1 . . . . . . . . . . . . . . . . . . . . . . . . . . . Part Schematics Acquired 1 | . . . . . 1 . . . . . . . . . . . . . . . . . . . . . . . . . . . . . Parts Damaged . | . . . . . . . . . . . . . . . . . . . . . . . . . . . . . . . . . . . Bothacking | -11 -10 -10 -10 -9 -8 -8 -7 -7 -7 -7 -6 -6 -6 -6 -6 -6 -5 -5 -5 -5 -4 -4 -4 -4 -4 -4 -4 -3 -3 -3 -2 -2 -1 -1 ------------ Run | Scr Mat Min Exi Min Mat Sto Fac Low Low Dat Pro Fac Ext Cet Arc Hub Fac Upp Upp Zhi Pro Fac Was Fac Upp Upp War Pro Res Tes Res Qua Acc Com Used RIF Installer . | . . . . . . . . . . . . . . . . . . . . . . . . . . . . . . . . . . . Robots Hacked 5 | . . . . . . . 1 . . . . . 1 . . . . . . . . . . . . . 1 . 1 . . . . 1 Non-combat 1 | . . . . . . . 1 . . . . . . . . . . . . . . . . . . . . . . . . . . . Combat 3 | . . . . . . . . . . . . . 1 . . . . . . . . . . . . . 1 . . . . . . 1 Robot Hacks Applied 4 | . . . . . . . 1 . . . . . 1 . . . . . . . . . . . . . 1 . . . . . . 1 parse_system 3 | . . . . . . . . . . . . . 1 . . . . . . . . . . . . . 1 . . . . . . 1 find_chute 1 | . . . . . . . 1 . . . . . . . . . . . . . . . . . . . . . . . . . . . Manual 2 | . . . . . . . . . . . . . . . . . . . . . . . . . . . . . 1 . . . . 1 Relay Couplers Released . | . . . . . . . . . . . . . . . . . . . . . . . . . . . . . . . . . . . Fabnet Peak Effective % . | . . . . . . . . . . . . . . . . . . . . . . . . . . . . . . . . . . . Robots Rewired 9 | . . . . . . . . . . . . 1 3 . . . . . . . . . . . . . 5 . . . . . . . Allies Hacked . | . . . . . . . . . . . . . . . . . . . . . . . . . . . . . . . . . . . Hacks Repelled . | . . . . . . . . . . . . . . . . . . . . . . . . . . . . . . . . . . . Allies | -11 -10 -10 -10 -9 -8 -8 -7 -7 -7 -7 -6 -6 -6 -6 -6 -6 -5 -5 -5 -5 -4 -4 -4 -4 -4 -4 -4 -3 -3 -3 -2 -2 -1 -1 -------- Run | Scr Mat Min Exi Min Mat Sto Fac Low Low Dat Pro Fac Ext Cet Arc Hub Fac Upp Upp Zhi Pro Fac Was Fac Upp Upp War Pro Res Tes Res Qua Acc Com Total Allies 47 | . . . . . . 12 . . . . 1 2 16 5 . . 1 . . . . . . . . . 5 . 1 1 2 . 1 . Largest Group 15 | . . . . . . 10 . . . . 1 2 12 15 15 10 1 . . . . . . . . . 5 . 1 1 2 . 1 . Highest-Rated Group 872 | . . . . . . 173 . . . . 96 96 465 872 872 627 26 . . . . . . . . . 294 . 116 26 36 . 45 . Highest-Rated Ally 159 | . . . . . . 31 . . . . 96 96 159 159 147 96 26 . . . . . . . . . 65 . 116 26 26 . 45 . Total Orders 8 | . . . . . . 1 . . . . . . . . . . . . . . . . . . . . 2 . . . . 1 . 4 ROAM 1 | . . . . . . 1 . . . . . . . . . . . . . . . . . . . . . . . . . . . . GUARD 2 | . . . . . . . . . . . . . . . . . . . . . . . . . . . 2 . . . . . . . RETURN 5 | . . . . . . . . . . . . . . . . . . . . . . . . . . . . . . . . 1 . 4 Ally Attacks 367 | . . . . . . 49 . . . . 13 6 23 37 31 32 . . . . . . . . . . 6 . 6 . . 22 . 142 Total Damage 8759 | . . . . . . 668 . . . . 228 186 612 752 1005 1300 . . . . . . . . . . 186 . 396 . . 305 . 3121 Kills 46 | . . . . . . 5 . . . . 2 . 6 4 7 13 . . . . . . . . . . 1 . 1 . . 1 . 6 Allies Corrupted 3 | . . . . . . . . . . . . . 1 . . . . . . . . . . . . . . . . . . . . 2 Allies Melted 1 | . . . . . . 1 . . . . . . . . . . . . . . . . . . . . . . . . . . . . Intel | -11 -10 -10 -10 -9 -8 -8 -7 -7 -7 -7 -6 -6 -6 -6 -6 -6 -5 -5 -5 -5 -4 -4 -4 -4 -4 -4 -4 -3 -3 -3 -2 -2 -1 -1 ------- Run | Scr Mat Min Exi Min Mat Sto Fac Low Low Dat Pro Fac Ext Cet Arc Hub Fac Upp Upp Zhi Pro Fac Was Fac Upp Upp War Pro Res Tes Res Qua Acc Com Robot Analysis Total 8 | . . . . . . . . . . . . . 3 . . . . . . 4 . . . . . . . . . . . . 1 . Derelict Logs Recovered 9 | . . 1 . . . . . 1 2 . . . . . . . . 1 . . 2 . . . . 2 . . . . . . . . Drone Launches 29 | . . . . . . . . . . . . . . . . . . . . . . . . . . . . . . . . 4 . 25 Drone Recoveries 21 | . . . . . . . . . . . . . . . . . . . . . . . . . . . . . . . . 4 . 17 Exploration | -11 -10 -10 -10 -9 -8 -8 -7 -7 -7 -7 -6 -6 -6 -6 -6 -6 -5 -5 -5 -5 -4 -4 -4 -4 -4 -4 -4 -3 -3 -3 -2 -2 -1 -1 ------------- Run | Scr Mat Min Exi Min Mat Sto Fac Low Low Dat Pro Fac Ext Cet Arc Hub Fac Upp Upp Zhi Pro Fac Was Fac Upp Upp War Pro Res Tes Res Qua Acc Com Turns Passed 12931 | 100 164 429 340 135 2386 1222 1134 369 231 23 418 520 301 220 109 158 219 195 51 79 96 77 77 979 98 83 385 42 386 453 170 396 285 601 Spaces Moved 16569 | 50 80 258 167 44 1198 568 1929 431 538 79 527 840 410 130 106 291 400 355 196 228 358 193 262 1115 363 398 707 207 436 862 569 555 771 948 Core 4 | 4 . . . . . . . . . . . . . . . . . . . . . . . . . . . . . . . . . . Treads 1746 | 46 80 258 167 44 523 568 60 . . . . . . . . . . . . . . . . . . . . . . . . . . . Legs 675 | . . . . . 675 . . . . . . . . . . . . . . . . . . . . . . . . . . . . . Wheels . | . . . . . . . . . . . . . . . . . . . . . . . . . . . . . . . . . . . Hover . | . . . . . . . . . . . . . . . . . . . . . . . . . . . . . . . . . . . Flight 14144 | . . . . . . . 1869 431 538 79 527 840 410 130 106 291 400 355 196 228 358 193 262 1115 363 398 707 207 436 862 569 555 771 948 Fastest Speed 16 | 50 160 160 160 240 120 160 26 26 26 26 26 26 26 26 26 26 26 26 26 26 26 23 23 20 20 20 20 20 17 17 18 19 16 19 Average Speed 43 | 151 160 160 204 240 152 160 30 26 26 26 26 26 26 26 26 26 26 26 26 26 26 23 23 22 20 20 20 20 17 17 21 21 20 24 Slowest Speed 320 | 160 160 160 240 240 320 160 160 26 26 93 26 97 26 26 26 26 26 94 26 26 26 23 23 23 20 20 20 20 20 20 22 84 22 93 Overloaded Moves 145 | . . . . . . . . . . . . . . . . . . . . . . . . . . . . . . . . 104 2 39 Propulsion Burnouts . | . . . . . . . . . . . . . . . . . . . . . . . . . . . . . . . . . . . Robots Hopped 55 | . . . . . . . 10 . . . . 3 . . . 2 1 . . . . . . 3 . . 2 . 4 13 3 1 7 6 Cave-ins Triggered . | . . . . . . . . . . . . . . . . . . . . . . . . . . . . . . . . . . . Teleports 1 | . . . . . . . . . . . . . . . . . . . . . . . . 1 . . . . . . . . . . Exploration Rate (%) 48 | 3 27 63 59 15 74 88 44 58 70 69 63 20 53 69 74 18 11 61 40 60 62 9 95 25 56 57 80 40 11 77 19 59 22 30 Regions Visited 34 Branch Regions 23 Pre-discovered Areas 6 | . . . 1 . . . . . . 1 . . . . . . . 1 . 3 . . . . . . . . . . . . . . Known Exits Taken 27 | . . . . . 1 1 1 1 1 1 1 1 1 1 1 1 1 1 1 1 1 . . 1 1 1 1 1 1 1 1 1 1 . Unknown Exits Taken 5 | 1 1 1 1 1 . . . . . . . . . . . . . . . . . . . . . . . . . . . . . . Scrap Searched 18 | . . 1 . . . . . 6 1 . 1 . . . . . . 3 1 . 1 . . . 1 2 . 1 . . . . . . Spaces Dug 201 | . . . . . 6 . 35 . 3 . 12 9 56 . . 2 10 1 . . 1 6 . 10 . . 2 . 6 10 5 4 17 6 Terrain Destroyed 506 | . . . . . 23 . 35 . 3 . 45 9 90 . . 177 10 34 . . 1 6 . 23 . . 2 . 6 10 5 4 17 6 Melee 130 | . . . . . . . 35 . 3 . 1 9 2 . . 2 10 1 . . 1 6 . 10 . . 2 . 6 10 5 4 17 6 Projectile . | . . . . . . . . . . . . . . . . . . . . . . . . . . . . . . . . . . . AOE 376 | . . . . . 23 . . . . . 44 . 88 . . 175 . 33 . . . . . 13 . . . . . . . . . . Terrain Rammed . | . . . . . . . . . . . . . . . . . . . . . . . . . . . . . . . . . . . Walls Destroyed . | . . . . . . . . . . . . . . . . . . . . . . . . . . . . . . . . . . . Machines Disabled . | . . . . . . . . . . . . . . . . . . . . . . . . . . . . . . . . . . . Actions | -11 -10 -10 -10 -9 -8 -8 -7 -7 -7 -7 -6 -6 -6 -6 -6 -6 -5 -5 -5 -5 -4 -4 -4 -4 -4 -4 -4 -3 -3 -3 -2 -2 -1 -1 --------- Run | Scr Mat Min Exi Min Mat Sto Fac Low Low Dat Pro Fac Ext Cet Arc Hub Fac Upp Upp Zhi Pro Fac Was Fac Upp Upp War Pro Res Tes Res Qua Acc Com Total 21354 | 64 98 276 168 56 1523 777 2363 687 621 80 795 1102 580 314 181 354 489 445 195 241 358 206 278 1798 388 400 937 206 717 1133 592 817 858 1257 Wait 3639 | . . . . 1 28 82 341 257 78 . 253 224 109 180 65 28 76 79 . . . 1 14 632 24 . 210 . 250 220 2 230 51 204 Move 16435 | 50 79 257 166 43 1197 567 1910 430 537 78 526 833 409 129 105 287 397 354 195 227 357 193 261 1108 362 397 703 206 429 836 563 552 756 936 Hop 47 | . . . . . . . 8 . . . . 3 . . . 1 1 . . . . . . 3 . . 1 . 2 12 2 1 7 6 Pick Up 103 | 3 6 6 . 3 29 6 4 . . . 1 1 . 1 . 1 . . . 1 . . 1 2 . . 2 . 4 14 . 4 2 12 Fast Attach 112 | 6 1 2 . . 18 1 6 . 2 . . 5 2 1 3 2 3 1 . 7 . 1 . 10 . 1 2 . 9 5 4 7 2 11 Attach 52 | . . . . . 7 . 12 . . 1 . 1 . . . 1 1 . . . . 1 1 3 1 1 1 . 2 4 1 2 3 9 Detach 15 | . . . . . 1 . . . . . 1 . . . . 1 . . . . . . . 3 1 . 2 . . 1 1 2 . 2 Swap 100 | . . 1 1 . 29 22 5 . . 1 4 1 3 . 2 2 . 4 . . . 1 . 3 . . 4 . 3 9 2 . . 3 Drop 178 | . 1 7 1 . 46 21 20 . 1 . 1 1 2 2 3 4 . 1 . 4 . . 1 7 . 1 . . 3 15 5 7 2 22 Fire 265 | 3 8 1 . 9 158 44 . . . . 7 . 13 . . 1 . 5 . . . . . 4 . . 10 . 2 . . . . . Melee 291 | . . . . . . 31 57 . 3 . 2 15 6 1 3 8 11 1 . 2 1 9 . 23 . . 2 . 13 17 12 9 23 42 Ram . | . . . . . . . . . . . . . . . . . . . . . . . . . . . . . . . . . . . Kick 4 | . . . . . 4 . . . . . . . . . . . . . . . . . . . . . . . . . . . . . Crush 16 | 2 3 2 . . 6 3 . . . . . . . . . . . . . . . . . . . . . . . . . . . . Escape Stasis 86 | . . . . . . . . . . . . 18 36 . . 18 . . . . . . . . . . . . . . . 2 12 . Rewire . | . . . . . . . . . . . . . . . . . . . . . . . . . . . . . . . . . . . Trap . | . . . . . . . . . . . . . . . . . . . . . . . . . . . . . . . . . . . Miscellaneous 11 | . . . . . . . . . . . . . . . . . . . . . . . . . . . . . . . . 1 . 10 Route ------- -11/Scrapyard -10/Materials -10/Mines (discovered 2 exits: [*Mat] / *Exi) -10/Exiles (discovered 2 exits: [*Min x2]) -9/Mines -8/Materials (discovered 3 exits: *Fac x2 / *Sto) -8/Storage -7/Factory (discovered 3 exits: *Fac / *Low x2) -7/Lower Caves -7/Lower Caves (discovered 2 exits: *Fac / *Dat) -7/Data Miner -6/Proximity Caves -6/Factory (discovered 2 exits: Low / *Ext) -6/Extension (discovered 2 exits: *Fac / *Cet) -6/Cetus -6/Archives (discovered 2 exits: *Fac / *Hub) -6/Hub_04(d) (discovered 2 exits: *Fac x2) -5/Factory (discovered 2 exits: *Upp x2) -5/Upper Caves -5/Upper Caves -5/Zhirov -4/Proximity Caves -4/Factory -4/Waste -4/Factory (discovered 3 exits: *Res / *Upp / [*Arm]) -4/Upper Caves -4/Upper Caves -4/Warlord -3/Proximity Caves -3/Research -3/Testing -2/Research (discovered 2 exits: *Qua x2) -2/Quarantine -1/Access -1/Command Free Derelict Territories History --------- Turn | Location | Event 25 | -11/Scrapyard | Discovered new exit (range 15) 101 | -11/Scrapyard | Entered Materials 234 | -10/Materials | Discovered new exit (range 16) 265 | -10/Materials | Entered Mines 317 | -10/Mines | Build established: Mutant 317 | -10/Mines | Joined a pair of Derelicts in attacking an 0b10 outpost 333 | -10/Mines | Learned location of 1 exit from Materials 416 | -10/Mines | Received a Rocket Launcher from a helpful Derelict 534 | -10/Mines | Discovered new exit (range 5) 572 | -10/Mines | Found a damaged Exp. Sensor Array with a note attached 583 | -10/Mines | Found Prototype Device 678 | -10/Mines | Found a hidden stash of uninstalled traps 688 | -10/Mines | Deemed a non-threat by the Exiles lab entrance 688 | -10/Mines | Discovered new exit (range 5) 694 | -10/Mines | Entered Exiles 718 | -10/Exiles | Discovered new exit (range 15) 738 | -10/Exiles | Met 8R-AWN 762 | -10/Exiles | Met EX-HEX 852 | -10/Exiles | Met EX-DEC 893 | -10/Exiles | Met EX-BIN 938 | -10/Exiles | Learned location of Zion (-6) 1015 | -10/Exiles | Discovered new exit (range 10) 1034 | -10/Exiles | Entered Mines 1075 | -9/Mines | Discovered new exit (range 9) 1169 | -9/Mines | Entered Materials 1169 | -8/Materials | Evolved 4 slots: Propulsion x2, Utility x2 1170 | -8/Materials | Identified exit to Factory 1173 | -8/Materials | Identified Exp. Sensor Array 1176 | -8/Materials | Discovered new exit (range 6) 1475 | -8/Materials | Build established: Scavenger-Mutant 2240 | -8/Materials | Garrison activated, responded to threat 2602 | -8/Materials | Build established: Mutant 2762 | -8/Materials | Identified exit to Storage 2847 | -8/Materials | Discovered exit to Factory (range 12) 3212 | -8/Materials | Build established: Scavenger-Mutant 3555 | -8/Materials | Entered Storage 3774 | -8/Storage | Core integrity fell below 50% 4256 | -8/Storage | Met a pair of Derelict thieves 4362 | -8/Storage | Destroyed 7 combat bots 4510 | -8/Storage | Assisted by bots powering up and referring to "LRC-V3" 4717 | -8/Storage | Discovered exit to Factory (range 16) 4777 | -8/Storage | Entered Factory 4777 | -7/Factory | Evolved 2 slots: Utility x2 5269 | -7/Factory | Build established: Hacker-Sprinter 5410 | -7/Factory | Fabricated Adv. Hacking Suite (x1) 5437 | -7/Factory | Fabricated Adv. Hacking Suite (x1) 5492 | -7/Factory | Repaired Hrd. Medium Armor Plating 5602 | -7/Factory | Repaired Exp. Sensor Array? 5749 | -7/Factory | Discovered new exit (range 7) 5751 | -7/Factory | Identified exit to Factory 5826 | -7/Factory | Discovered new exit (range 9) 5827 | -7/Factory | Identified exit to Lower Caves 5911 | -7/Factory | Entered Lower Caves 5924 | -7/Lower Caves | Learned location of 1 exit from Factory 6279 | -7/Lower Caves | Discovered new exit (range 6) 6280 | -7/Lower Caves | Identified exit to Lower Caves 6280 | -7/Lower Caves | Entered another Lower Caves area 6281 | -7/Lower Caves | Learned Factory terminal intel 6286 | -7/Lower Caves | Found Alien Artifact 6286 | -7/Lower Caves | Identified Core Expander 6286 | -7/Lower Caves | Installed Core Expander, added new Weapon slot 6305 | -7/Lower Caves | Discovered exit to Factory (range 4) 6497 | -7/Lower Caves | Learned Factory emergency access door positions 6509 | -7/Lower Caves | Discovered new exit (range 6) 6510 | -7/Lower Caves | Identified exit to Data Miner 6511 | -7/Lower Caves | Entered Data Miner 6511 | -7/Data Miner | Discovered new exit (range 6) 6516 | -7/Data Miner | Met Data Miner 6522 | -7/Data Miner | Learned location of Section 7 (-2) 6522 | -7/Data Miner | Acquired the access code to Warlord's prototype stash 6525 | -7/Data Miner | Received God Mode back door access code from Data Miner 6531 | -7/Data Miner | Identified exit to Proximity Caves 6534 | -7/Data Miner | Entered Proximity Caves 6588 | -6/Proximity Caves | Escorted by Enhanced Grunt 6773 | -6/Proximity Caves | Received a Behemoth hack from an annoying Tinkerer 6913 | -6/Proximity Caves | Discovered exit to Factory (range 15) 6952 | -6/Proximity Caves | Entered Factory 6952 | -6/Factory | Accompanied by 1 ally 6952 | -6/Factory | Evolved 2 slots: Utility x2 6953 | -6/Factory | Identified exit to Lower Caves 6955 | -6/Factory | Loaded intel: 28 terminal locations 6975 | -6/Factory | Central database locked down 6994 | -6/Factory | Repaired Imp. Datajack 7053 | -6/Factory | Discovered new exit (range 6) 7054 | -6/Factory | Identified exit to Extension 7180 | -6/Factory | Repaired Imp. Medium Armor Plating 7210 | -6/Factory | Incoming investigation squad redirected 7321 | -6/Factory | Repaired Imp. Cesium-ion Thruster 7411 | -6/Factory | Repaired Imp. Cesium-ion Thruster 7472 | -6/Factory | Entered Extension 7489 | -6/Extension | Rescued a captive Derelict 7490 | -6/Extension | Rescued a captive Derelict 7498 | -6/Extension | Rescued a captive Derelict 7511 | -6/Extension | Rescued A7 7580 | -6/Extension | Rescued a captive Derelict 7581 | -6/Extension | Rescued a captive Derelict 7646 | -6/Extension | Rescued a captive Derelict 7646 | -6/Extension | Rescued a captive Derelict 7668 | -6/Extension | Rescued a captive Derelict 7673 | -6/Extension | Rescued a captive Derelict 7674 | -6/Extension | Rescued a captive Derelict 7680 | -6/Extension | Rescued a captive Derelict 7688 | -6/Extension | Rescued a captive Derelict 7690 | -6/Extension | Central database locked down 7696 | -6/Extension | Discovered new exit (range 10) 7696 | -6/Extension | Discovered new exit (range 6) 7725 | -6/Extension | Identified exit to Cetus 7773 | -6/Extension | Entered Cetus 7773 | -6/Cetus | Accompanied by 12 allies (A7) 7778 | -6/Cetus | Acquired a Cetus Manufacturing Module code from A7 7784 | -6/Cetus | Spotted Cetus Guard 7784 | -6/Cetus | Spotted Cetus Guard 7788 | -6/Cetus | Spotted Cetus Guard 7794 | -6/Cetus | Spotted Cetus Guard 7799 | -6/Cetus | Allies destroyed Cetus Guard 7802 | -6/Cetus | Allies destroyed Cetus Guard 7802 | -6/Cetus | Allies destroyed Cetus Guard 7809 | -6/Cetus | Allies destroyed Cetus Guard 7827 | -6/Cetus | Started Cetus Manufacturing Module 7837 | -6/Cetus | Escorted A7 to Cetus Mainframe 7852 | -6/Cetus | Manufactured an Enhanced Grunt 7877 | -6/Cetus | Manufactured an Enhanced Grunt 7902 | -6/Cetus | Manufactured an Enhanced Grunt 7927 | -6/Cetus | Manufactured an Enhanced Grunt 7950 | -6/Cetus | Discovered new exit (range 15) 7952 | -6/Cetus | Manufactured an Enhanced Grunt 7954 | -6/Cetus | Identified exit to Archives 7993 | -6/Cetus | Entered Archives 7993 | -6/Archives | Accompanied by 15 allies (A7) 7998 | -6/Archives | Received a hacking code to weaken MAIN.C 8034 | -6/Archives | Discovered new exit (range 13) 8043 | -6/Archives | Discovered new exit (range 15) 8055 | -6/Archives | Identified exit to Hub_04(d) 8102 | -6/Archives | Entered Hub_04(d) 8102 | -6/Hub_04(d) | Accompanied by 10 allies 8143 | -6/Hub_04(d) | Discovered new exit (range 15) 8182 | -6/Hub_04(d) | Identified exit to Factory 8203 | -6/Hub_04(d) | Discovered exit to Factory (range 9) 8256 | -6/Hub_04(d) | Network Hub disabled 8260 | -6/Hub_04(d) | Entered Factory 8260 | -5/Factory | Evolved 2 slots: Utility x2 8278 | -5/Factory | Identified exit to Upper Caves 8323 | -5/Factory | Build established: Wizard-Sprinter 8329 | -5/Factory | Repaired Remote Datajack? 8479 | -5/Factory | Entered Upper Caves 8618 | -5/Upper Caves | Encountered a Warlord checkpoint 8671 | -5/Upper Caves | Discovered new exit (range 11) 8673 | -5/Upper Caves | Identified exit to Upper Caves 8674 | -5/Upper Caves | Entered another Upper Caves area 8701 | -5/Upper Caves | Spotted B-75 Beast 8724 | -5/Upper Caves | Discovered new exit (range 5) 8725 | -5/Upper Caves | Identified exit to Zhirov 8725 | -5/Upper Caves | Entered Zhirov 8725 | -5/Zhirov | Discovered new exit (range 3) 8730 | -5/Zhirov | Met Zhirov 8735 | -5/Zhirov | Learned location of Quarantine (-2) 8735 | -5/Zhirov | Learned location of Testing (-3) 8735 | -5/Zhirov | Learned location of Command (-1) 8737 | -5/Zhirov | Zhirov requested help retrieving the SGEMP Prototype 8741 | -5/Zhirov | Found Alien Artifact 8741 | -5/Zhirov | Identified Integrated Dissipator 8741 | -5/Zhirov | Installed Integrated Dissipator, increased core heat dissipation (+20) 8746 | -5/Zhirov | Found Alien Artifact 8804 | -5/Zhirov | Identified exit to Proximity Caves 8804 | -5/Zhirov | Entered Proximity Caves 8815 | -4/Proximity Caves | Learned 4 Research zone layouts 8831 | -4/Proximity Caves | Learned location of 1 exit from Research 8849 | -4/Proximity Caves | Spotted B-86 Titan 8896 | -4/Proximity Caves | Discovered new exit (range 15) 8900 | -4/Proximity Caves | Identified exit to Factory 8900 | -4/Proximity Caves | Entered Factory 8900 | -4/Factory | Evolved 2 slots: Propulsion x2 8977 | -4/Factory | Sucked down chute 8977 | -4/Factory | Entered Waste 8977 | -4/Waste | The area was eerily silent 9024 | -4/Waste | Discovered new exit (range 16) 9043 | -4/Waste | Identified exit to Factory 9054 | -4/Waste | Entered Factory 9181 | -4/Factory | Fabricated Lrn. Sensor Array (x1) 9226 | -4/Factory | Repaired Imp. Propulsion Shielding 9247 | -4/Factory | Repaired Imp. VTOL Module 9269 | -4/Factory | Repaired Imp. VTOL Module 9336 | -4/Factory | Discovered new exit (range 15) 9341 | -4/Factory | Identified exit to Research 9454 | -4/Factory | Fabricated Vibroblade? 9760 | -4/Factory | Fabricated Cld. Cesium-ion Thruster (x1) 9764 | -4/Factory | Spotted B-86 Titan 9982 | -4/Factory | Discovered new exit (range 11) 10006 | -4/Factory | Identified Transdimensional Reconstructor 10006 | -4/Factory | Warped through subspace 10018 | -4/Factory | Discovered new exit (range 12) 10033 | -4/Factory | Identified exit to Upper Caves 10033 | -4/Factory | Entered Upper Caves 10065 | -4/Upper Caves | Lost 4 parts (1p2u1w) 10115 | -4/Upper Caves | Encountered a Warlord checkpoint 10129 | -4/Upper Caves | Discovered new exit (range 11) 10131 | -4/Upper Caves | Identified exit to Upper Caves 10131 | -4/Upper Caves | Entered another Upper Caves area 10212 | -4/Upper Caves | Discovered new exit (range 8) 10214 | -4/Upper Caves | Identified exit to Warlord 10214 | -4/Upper Caves | Entered Warlord 10221 | -4/Warlord | System corruption cleaned by Quarantine Array 10270 | -4/Warlord | Found Prototype Device 10270 | -4/Warlord | Identified Minesniffer Drone Bay 10318 | -4/Warlord | Received a Watcher feed algorithm from an ecstatic Tinkerer 10319 | -4/Warlord | Met Warlord 10320 | -4/Warlord | Opened Warlord's prototype stash 10321 | -4/Warlord | Found Prototype Reactor 10324 | -4/Warlord | Found Prototype Hackware 10324 | -4/Warlord | Identified Ghost Barrier 10334 | -4/Warlord | Learned Quarantine trap positions 10334 | -4/Warlord | Learned 4 Access zone layouts 10334 | -4/Warlord | Learned Quarantine security intel 10336 | -4/Warlord | Warlord's base attacked by MAIN.C 10590 | -4/Warlord | Opened side exit 10597 | -4/Warlord | Discovered new exit (range 12) 10599 | -4/Warlord | Identified exit to Proximity Caves 10599 | -4/Warlord | Entered Proximity Caves 10638 | -3/Proximity Caves | Discovered exit to Research (range 14) 10641 | -3/Proximity Caves | Entered Research 10641 | -3/Research | Evolved 2 slots: Propulsion x1, Utility x1 10642 | -3/Research | Identified exit to Testing 10683 | -3/Research | Repaired Lrn. Sensor Array 10739 | -3/Research | Repaired Centrium Medium Armor Plating 10780 | -3/Research | Repaired Cld. Cesium-ion Thruster 10810 | -3/Research | Repaired Imp. Transmission Jammer 10873 | -3/Research | Repaired Imp. VTOL Module 10905 | -3/Research | Repaired Imp. VTOL Module 10958 | -3/Research | Spotted B-86 Titan 10962 | -3/Research | Befriended a Behemoth using the annoying Tinkerer's hack 11027 | -3/Research | Entered Testing 11119 | -3/Testing | Repaired Imp. Cesium-ion Thruster 11174 | -3/Testing | Repaired Centrium Medium Armor Plating 11188 | -3/Testing | Identified exit to Research 11247 | -3/Testing | Found Prototype Device 11247 | -3/Testing | Identified AEGIS Remote Shield 11313 | -3/Testing | Found Prototype Device 11392 | -3/Testing | Identified Exp. Thermal Defense Suite 11399 | -3/Testing | Found Antimissile System 11420 | -3/Testing | Fabricated Assault Drone Bay? 11430 | -3/Testing | Imp. System Shield fried by hacking feedback 11443 | -3/Testing | Spotted PH-ZYMM4PHBOS 11460 | -3/Testing | Incoming investigation squad redirected 11461 | -3/Testing | Fabricated Assault Drone Bay? 11480 | -3/Testing | Entered Research 11480 | -2/Research | Warlord forces began assault on 0b10 11480 | -2/Research | Evolved 2 slots: Power x1, Utility x1 11481 | -2/Research | Identified exit to Quarantine 11520 | -2/Research | Spotted B-90 Cyclops 11534 | -2/Research | Found Prototype Processor 11534 | -2/Research | Identified Spectral Analyzer 11541 | -2/Research | Met up with Warlord 11582 | -2/Research | Found Prototype Processor 11582 | -2/Research | Identified Exp. Targeting Computer 11590 | -2/Research | Research machine network offline 11650 | -2/Research | Entered Quarantine 11651 | -2/Quarantine | Loaded intel: 26 trap records 11682 | -2/Quarantine | Found Alien Artifact 11689 | -2/Quarantine | Found Alien Slashing Weapon 11689 | -2/Quarantine | Identified Sigix Broadsword 11755 | -2/Quarantine | Repaired Centrium Medium Armor Plating 11811 | -2/Quarantine | Repaired Electron Diverter 11862 | -2/Quarantine | Repaired Vibroblade 11917 | -2/Quarantine | Repaired Electron Diverter 11953 | -2/Quarantine | Found Alien Impact Weapon 11953 | -2/Quarantine | Identified Core Stripper 12002 | -2/Quarantine | Scanned by Researcher 12043 | -2/Quarantine | Discovered new exit (range 16) 12046 | -2/Quarantine | Identified exit to Access 12046 | -2/Quarantine | Entered Access 12046 | -1/Access | Evolved 2 slots: Power x1, Propulsion x1 12147 | -1/Access | Fabricated Assault Drone Bay? 12192 | -1/Access | Incoming investigation squad redirected 12202 | -1/Access | Fabricated Assault Drone Bay (x1) 12286 | -1/Access | Spotted B-99 Colossus 12296 | -1/Access | Search patrols dispatched 12330 | -1/Access | Discovered new exit (range 7) 12331 | -1/Access | Identified exit to Command 12331 | -1/Access | Entered Command 12377 | -1/Command | Spotted B-99 Colossus 12381 | -1/Command | Disengaged cave seal 12381 | -1/Command | Derelicts emerged from the dark tunnel 12381 | -1/Command | Welcomed Warlord to Command 12383 | -1/Command | Found Antimissile System 12581 | -1/Command | Search patrols dispatched 12679 | -1/Command | Identified Subatomic Replicator 12679 | -1/Command | Used Subatomic Replicator to replicate Assault Drone Bay 12688 | -1/Command | Spotted M Guard 12688 | -1/Command | Spotted M Guard 12691 | -1/Command | Spotted Combat Programmer 12693 | -1/Command | Spotted Combat Programmer 12695 | -1/Command | Warlord commented on Warlord statues 12740 | -1/Command | Lost 4 parts (1n3u) 12812 | -1/Command | All MAIN.C guards destroyed 12816 | -1/Command | Found Prototype Reactor 12816 | -1/Command | Identified Zero-point Reactor 12819 | -1/Command | Found Zero-point Reactor 12826 | -1/Command | Met MAIN.C 12832 | -1/Command | Lost 4 parts (1p3u) 12837 | -1/Command | Hacked MAIN.C using A7's code 12844 | -1/Command | 0b10 Conduit disabled 12863 | -1/Command | Destroyed MAIN.C Shell 12865 | -1/Command | MAIN.C activated Command garrisons 12932 | *** | Establishing Free Derelict Territories! Last Messages --------------- 12923_ Slug penetrates MAIN.C. 12923_ Slug penetrates Reinforced Barrier. 12925_ Slug penetrates MAIN.C. 12925_ MAIN.C reaction time slowed by virus. 12925_ Blast Slug penetrates MAIN.C. 12925_ Blast Slug penetrates 0b10 Conduit. 12926_ MAIN.C reaction time slowed by virus. 12929_ Slug penetrates MAIN.C. 12930_ MAIN.C reaction time slowed by virus. 12931_ Slug penetrates MAIN.C. 12931_ Slug penetrates 0b10 Conduit. 12931_ MAIN.C reaction time slowed by virus. 12932_ MAIN.C: "I hope you know you're still going to DIE HERE WITH ME!" Heavy Barrier opened. 12932_ MAIN.C destroyed. 12932_ Blast Slug penetrates 0b10 Conduit. Warlord: Victory! Sure there's still lots to do, but without MAIN.C at the helm 0b10 doesn't stand a chance. We've got this... Map ----- +----------------------------------------------------+ | ?????????????????????????????????????????????????? | | ?????????????????????????????????????????????????? | | ?????????????????????????????????????????????????? | | ?????????????????????????????????????????????????? | | ?????????????????????????????????????????????????? | | ?????????????????????????????????????????????????? | | ?????????????????????????????????????????????????? | | ?????????????????????????????????????????????????? | | ?????????????????????????????????????????????????? | | ?????????????????????????????????????????????????? | | ?????????????????????????????????????????????????? | | ?????????????????????????????????????????????????? | | ?????????????????????????????????????????????????? | | ?????????????????????????????????????????????????? | | ?????????????????????????????????????????????????? | | ?????????????????????????????????????????????????? | | ?????????????????????????????????????????????????? | | ????????????????????????????###??????????????????? | | ???????????????????????????? ##?????????????????? | | ?????????????????############;;#########?????????? | | ?????????????????#""""" % #?????????? | | ?????????????????#" % !!% #?????????? | | ?????????????????#""" n % ########### | | ?????????????????#"""""" % ; % | | ?????????????????#" " |! | | ?????????????????#"" " @% !W *%! % p | | ?????????????????#"" " =%! ########### | | ?????????????????# " " % !! #?????????? | | ?????????????????# % #?????????? | | ?????????????????# " #?????????? | | ?????????????????#" "" " #?????????? | | ?????????????????#"" n % """"" "#?????????? | | ?????????????????# % " """" #?????????? | | ?????????????????# %" " " #?????????? | | ?????????????????# " " " " #?????????? | | ?????????????? " " " """" " #?????????? | | ?????????? "" " " """" #?????????? | | ??????? " " " #?????????? | | ??????? ##### """"""""" " #?????????? | | ??????? ??????# """ " """"""""#?????????? | | ???????? ????????# """ " " " ??????????? | | ?????????????????######################??????????? | | ?????????????????????????????????????????????????? | | ?????????????????????????????????????????????????? | | ?????????????????????????????????????????????????? | | ?????????????????????????????????????????????????? | | ?????????????????????????????????????????????????? | | ?????????????????????????????????????????????????? | | ?????????????????????????????????????????????????? | | ?????????????????????????????????????????????????? | +----------------------------------------------------+ Best States ------------- Heat Dissipation 72 Energy Generation 65 Energy Capacity 530 Matter Stores 300 Matter Capacity 300 Sight Range 24 Robot Scan Range 20 Terrain Scan Density 10 Jamming Range 14 Armor Coverage 225 Power Shielding 90 Propulsion Shielding 66 Utility Shielding 33 Weapon Shielding 66 Point Defense Rating 640 Evasion (%) 72 Melee Accuracy 12 Recoil Reduction 4 Offensive Hacking 76 Defensive Hacking 44 Authchip Count 1 Item Schematics ----------------- Imp. Datajack | -8/Materials | Scanalyzed System Shield | -8/Storage | Hacked Adv. Hacking Suite | -7/Factory | Hacked Imp. System Shield | -7/Factory | Hacked Combat Drone Bay | -7/Data Miner | Free Lgt. Regenerative Plating | -7/Data Miner | Free Cld. Cesium-ion Thruster | -7/Data Miner | Free Gravity Neutralizer | -7/Data Miner | Free Shock Maul | -7/Data Miner | Free Hvy. Treads | -7/Data Miner | Free Imp. Focal Shield | -7/Data Miner | Free Variable Charge Gun | -7/Data Miner | Free Antimatter Reactor | -7/Data Miner | Free Point Defense Array | -7/Data Miner | Free Enh. Optical Array | -7/Data Miner | Free Adv. System Shield | -6/Extension | Hacked Assault Drone Bay | -5/Zhirov | Free Exp. Heat Sink | -5/Zhirov | Free Exp. Optical Array | -5/Zhirov | Free Imp. Arc Thrower | -5/Zhirov | Free Lrn. Sensor Array | -4/Factory | Hacked Vibroblade | -4/Factory | Hacked Med. Regenerative Plating | -3/Testing | Hacked Mni. Fusion Reactor | -3/Testing | Archive Diametric Drive | -3/Testing | Archive Hvy. Gatling Laser | -3/Testing | Archive Exp. Target Analyzer | -2/Quarantine | Archive Centrium Leg | -1/Access | Hacked Robot Schematics ------------------ M-28 Smith | -7/Data Miner | Free S-27 Virus | -7/Data Miner | Free G-47 Trooper | -7/Data Miner | Free M-22 Extractor | -7/Data Miner | Free H-66 Slayer | -4/Factory | Hacked R-10 Processor | -3/Testing | Archive A-02 Transporter | -3/Testing | Archive Fabricated ------------ Adv. Hacking Suite | x1 | -7/Factory | Authchip Adv. Hacking Suite | x1 | -7/Factory Lrn. Sensor Array | x1 | -4/Factory Vibroblade | x1 | -4/Factory Cld. Cesium-ion Thruster | x1 | -4/Factory Assault Drone Bay | x1 | -3/Testing Assault Drone Bay | x1 | -3/Testing Assault Drone Bay | x1 | -1/Access Assault Drone Bay | x1 | -1/Access Alien Tech Used ----------------- Core Expander Integrated Dissipator Transdimensional Reconstructor Sigix Broadsword Core Stripper Subatomic Replicator Achievements -------------- None Challenges ------------ None Game ------ Seed MiningAssemblyMallet Manual? 0 Play Time 02:18:33 Cumulative 725.9 hours Start 2022.04.16 @ 21:24:29 End 2022.04.17 @ 10:28:18 Sessions 3 Manual Loads 0 Difficulty Rogue Special Mode None Game No. 1104 Rogue 1104 Adventurer 0 Explorer 0 Win Type 7 Total 69 Types 41/1/10/12/4/0/0/1/0 Lore% 91 Gallery% 90 Achievement% 83 Wizard Run 0 Options --------- ASCII 1 Keyboard 0 Movement Numpad Keybinds 0 Fullscreen 0 Font 14/SmallcapsGlow Map View 76x50 Tactical HUD 1 Map Filters NONE Filters NONE Steam 1 RUN: 4f797fb0-be41-42e1-a4ff-17d263b1e422